[Event "*** Titled Tuesday Blitz"]
[Site "Chess.com"]
[Date "2020.11.10"]
[Round "7"]
[White "Korchmar_Vasiliy"]
[Black "rasmussvane"]
[Result "1-0"]
[WhiteElo "2633"]
[BlackElo "2859"]
[TimeControl "180+1"]
[EndTime "11:21:54 PST"]
[Termination "Korchmar_Vasiliy won by resignation"]

1. d4 {[%clk 0:03:00.9]} 1... d5 {[%clk 0:02:59.9]} 2. Nf3 {[%clk 0:03:00.7]}
2... e6 {[%clk 0:03:00.2]} 3. Bf4 {[%clk 0:03:01.1]} 3... Nf6 {[%clk 0:03:00.4]}
4. e3 {[%clk 0:03:01.2]} 4... Bd6 {[%clk 0:03:00.6]} 5. Bg3 {[%clk 0:03:01.4]}
5... O-O {[%clk 0:03:01]} 6. Nbd2 {[%clk 0:02:58.3]} 6... c5 {[%clk 0:03:01.2]}
7. c3 {[%clk 0:02:58.2]} 7... Qc7 {[%clk 0:03:01.4]} 8. Ne5 {[%clk 0:02:53.4]}
8... Nc6 {[%clk 0:02:59.3]} 9. f4 {[%clk 0:02:52.4]} 9... b6 {[%clk 0:02:58.7]}
10. Bd3 {[%clk 0:02:51.9]} 10... Bb7 {[%clk 0:02:59.1]} 11. Bh4 {[%clk
0:02:50.2]} 11... Ne7 {[%clk 0:02:37]} 12. Bxf6 {[%clk 0:02:42.8]} 12... gxf6
{[%clk 0:02:37.9]} 13. Qh5 {[%clk 0:02:07.2]} 13... Ng6 {[%clk 0:02:36.7]} 14.
Ng4 {[%clk 0:02:03]} 14... Qe7 {[%clk 0:02:32.4]} 15. f5 {[%clk 0:01:24.9]}
15... exf5 {[%clk 0:02:25.2]} 16. Nh6+ {[%clk 0:01:25]} 16... Kh8 {[%clk
0:02:24]} 17. Nxf5 {[%clk 0:01:25.9]} 17... Qe6 {[%clk 0:02:20.3]} 18. O-O-O
{[%clk 0:01:09.8]} 18... cxd4 {[%clk 0:02:13.8]} 19. cxd4 {[%clk 0:01:07.3]}
19... Bb4 {[%clk 0:02:10.3]} 20. Nf3 {[%clk 0:01:01.7]} 20... a5 {[%clk
0:01:58.9]} 21. Kb1 {[%clk 0:01:00.2]} 21... Ba6 {[%clk 0:01:59]} 22. Bxa6
{[%clk 0:00:51.4]} 22... Rxa6 {[%clk 0:01:59.9]} 23. Rc1 {[%clk 0:00:42.5]}
23... Qe4+ {[%clk 0:01:56.8]} 24. Ka1 {[%clk 0:00:42.2]} 24... Raa8 {[%clk
0:01:55.4]} 25. Rc6 {[%clk 0:00:30.2]} 25... Rac8 {[%clk 0:01:50.3]} 26. Rxf6
{[%clk 0:00:18.9]} 26... Qc2 {[%clk 0:01:01.5]} 27. Rb1 {[%clk 0:00:18.4]} 27...
Bc3 {[%clk 0:01:01.5]} 28. Rxb6 {[%clk 0:00:13.4]} 28... Rb8 {[%clk 0:00:52.8]}
29. Ng5 {[%clk 0:00:11.2]} 1-0

[Event "*** Titled Tuesday Blitz"]
[Site "Chess.com"]
[Date "2020.11.10"]
[Round "7"]
[White "03revilo"]
[Black "zivicd"]
[Result "0-1"]
[WhiteElo "2334"]
[BlackElo "2255"]
[TimeControl "180+1"]
[EndTime "11:21:54 PST"]
[Termination "zivicd won on time"]

1. e4 {[%clk 0:03:00.9]} 1... c5 {[%clk 0:02:59.2]} 2. Nf3 {[%clk 0:03:01]} 2...
e6 {[%clk 0:02:58.8]} 3. d4 {[%clk 0:03:01.4]} 3... cxd4 {[%clk 0:02:59.7]} 4.
Nxd4 {[%clk 0:03:02]} 4... a6 {[%clk 0:03:00.3]} 5. Bd3 {[%clk 0:03:01.8]} 5...
Qc7 {[%clk 0:02:58.9]} 6. O-O {[%clk 0:03:01.5]} 6... Nf6 {[%clk 0:02:59.4]} 7.
c4 {[%clk 0:03:00.4]} 7... d6 {[%clk 0:02:59.1]} 8. Nc3 {[%clk 0:03:00.2]} 8...
Be7 {[%clk 0:02:58.9]} 9. Be3 {[%clk 0:02:58]} 9... Nbd7 {[%clk 0:02:58.7]} 10.
Rc1 {[%clk 0:02:57.7]} 10... b6 {[%clk 0:02:58.9]} 11. b3 {[%clk 0:02:55.3]}
11... Bb7 {[%clk 0:02:58.9]} 12. f3 {[%clk 0:02:55.3]} 12... O-O {[%clk
0:02:59.2]} 13. a4 {[%clk 0:02:46]} 13... Rac8 {[%clk 0:02:47.2]} 14. Kh1 {[%clk
0:02:34.1]} 14... Qb8 {[%clk 0:02:46.7]} 15. a5 {[%clk 0:02:28]} 15... bxa5
{[%clk 0:02:43.5]} 16. Ra1 {[%clk 0:02:26.8]} 16... Bd8 {[%clk 0:02:43.6]} 17.
Nc2 {[%clk 0:02:20.8]} 17... d5 {[%clk 0:02:37.5]} 18. exd5 {[%clk 0:02:12.1]}
18... exd5 {[%clk 0:02:37.1]} 19. Nxd5 {[%clk 0:02:09.5]} 19... Nxd5 {[%clk
0:02:25.5]} 20. cxd5 {[%clk 0:02:10]} 20... Bc7 {[%clk 0:02:04.8]} 21. f4 {[%clk
0:01:49.5]} 21... Nf6 {[%clk 0:01:57.3]} 22. d6 {[%clk 0:01:24.1]} 22... Bxd6
{[%clk 0:01:49.3]} 23. Rxa5 {[%clk 0:01:24.6]} 23... Rfd8 {[%clk 0:01:19.3]} 24.
Rg5 {[%clk 0:01:08]} 24... h6 {[%clk 0:01:14.7]} 25. Rg3 {[%clk 0:00:55.1]}
25... Be4 {[%clk 0:01:01.8]} 26. Bxe4 {[%clk 0:00:07.9]} 26... Nxe4 {[%clk
0:01:00.3]} 27. Rh3 {[%clk 0:00:07.9]} 27... Bc5 {[%clk 0:00:33.1]} 28. Qf3
{[%clk 0:00:07.2]} 28... Nd2 {[%clk 0:00:31.2]} 29. Qg4 {[%clk 0:00:04.6]} 29...
Nxf1 {[%clk 0:00:26.2]} 30. Bxc5 {[%clk 0:00:04.2]} 30... Rxc5 {[%clk
0:00:24.5]} 31. Ne1 {[%clk 0:00:02.4]} 31... Rc1 {[%clk 0:00:21.2]} 0-1

[Event "*** Titled Tuesday Blitz"]
[Site "Chess.com"]
[Date "2020.11.10"]
[Round "7"]
[White "The_Machine04"]
[Black "Quiet_Desperation"]
[Result "0-1"]
[WhiteElo "2283"]
[BlackElo "1760"]
[TimeControl "180+1"]
[EndTime "11:21:54 PST"]
[Termination "Quiet_Desperation won on time"]

1. d4 {[%clk 0:03:00.9]} 1... d5 {[%clk 0:03:00.2]} 2. Bf4 {[%clk 0:02:56.2]}
2... c6 {[%clk 0:03:00]} 3. e3 {[%clk 0:02:55.5]} 3... Bf5 {[%clk 0:02:57.3]} 4.
c4 {[%clk 0:02:50.8]} 4... e6 {[%clk 0:02:57.4]} 5. Nc3 {[%clk 0:02:48.2]} 5...
Nf6 {[%clk 0:02:55]} 6. Nf3 {[%clk 0:02:43.2]} 6... Bb4 {[%clk 0:02:42.5]} 7.
Qb3 {[%clk 0:02:19.9]} 7... Qa5 {[%clk 0:02:28]} 8. a3 {[%clk 0:01:56.2]} 8...
Bxc3+ {[%clk 0:02:19]} 9. bxc3 {[%clk 0:01:57.1]} 9... Qb6 {[%clk 0:02:15.2]}
10. Qb4 {[%clk 0:01:25.7]} 10... Na6 {[%clk 0:02:11]} 11. Qxb6 {[%clk
0:01:06.2]} 11... axb6 {[%clk 0:02:09.7]} 12. Be2 {[%clk 0:01:02]} 12... Ne4
{[%clk 0:02:03.2]} 13. Rc1 {[%clk 0:00:52.2]} 13... f6 {[%clk 0:01:54.1]} 14.
Nd2 {[%clk 0:00:43.8]} 14... Nxd2 {[%clk 0:01:51.1]} 15. Kxd2 {[%clk 0:00:44.7]}
15... Kf7 {[%clk 0:01:41.3]} 16. Ra1 {[%clk 0:00:37]} 16... Rhe8 {[%clk
0:01:38.8]} 17. Bg3 {[%clk 0:00:26.3]} 17... e5 {[%clk 0:01:31.4]} 18. cxd5
{[%clk 0:00:24.8]} 18... cxd5 {[%clk 0:01:28.4]} 19. Ra2 {[%clk 0:00:20.4]}
19... Nc7 {[%clk 0:01:12.1]} 20. Rha1 {[%clk 0:00:17.1]} 20... b5 {[%clk
0:01:09.9]} 21. Rb2 {[%clk 0:00:16.3]} 21... Ra5 {[%clk 0:01:07.3]} 22. Rb3
{[%clk 0:00:15.4]} 22... Bd7 {[%clk 0:01:01.9]} 23. Ra2 {[%clk 0:00:13.2]} 23...
Bc6 {[%clk 0:01:00.9]} 24. f3 {[%clk 0:00:07.4]} 24... Ke6 {[%clk 0:00:54.7]}
25. Bd3 {[%clk 0:00:06.6]} 25... g6 {[%clk 0:00:52.4]} 26. h4 {[%clk 0:00:05.3]}
26... e4 {[%clk 0:00:47.3]} 27. fxe4 {[%clk 0:00:04.7]} 27... dxe4 {[%clk
0:00:47.1]} 28. Bc2 {[%clk 0:00:04.1]} 28... Bd5 {[%clk 0:00:46.4]} 29. Rab2
{[%clk 0:00:04.1]} 29... Bxb3 {[%clk 0:00:45.7]} 30. Bxb3+ {[%clk 0:00:04.4]}
30... Nd5 {[%clk 0:00:44.3]} 31. Ra2 {[%clk 0:00:03]} 31... Rea8 {[%clk
0:00:41.4]} 32. a4 {[%clk 0:00:01.5]} 32... bxa4 {[%clk 0:00:31.8]} 33. Bc2
{[%clk 0:00:01.5]} 33... f5 {[%clk 0:00:29.9]} 0-1

[Event "*** Titled Tuesday Blitz"]
[Site "Chess.com"]
[Date "2020.11.10"]
[Round "7"]
[White "Paralinch"]
[Black "Sibelephant"]
[Result "1/2-1/2"]
[WhiteElo "2844"]
[BlackElo "3078"]
[TimeControl "180+1"]
[EndTime "11:21:56 PST"]
[Termination "Game drawn by repetition"]

1. e4 {[%clk 0:03:00.9]} 1... e5 {[%clk 0:02:59.7]} 2. Nf3 {[%clk 0:03:00.7]}
2... Nc6 {[%clk 0:03:00.1]} 3. Nc3 {[%clk 0:03:00.7]} 3... Nf6 {[%clk
0:02:59.8]} 4. a3 {[%clk 0:02:58.7]} 4... d5 {[%clk 0:02:56.6]} 5. exd5 {[%clk
0:02:57.5]} 5... Nxd5 {[%clk 0:02:56.8]} 6. Nxe5 {[%clk 0:02:58]} 6... Nxc3
{[%clk 0:02:39.1]} 7. Nxc6 {[%clk 0:02:57.6]} 7... Nxd1 {[%clk 0:02:39.4]} 8.
Nxd8 {[%clk 0:02:57.9]} 8... Nxf2 {[%clk 0:02:39.8]} 9. Kxf2 {[%clk 0:02:45.2]}
9... Bc5+ {[%clk 0:02:39.6]} 10. Kf3 {[%clk 0:02:44.1]} 10... Kxd8 {[%clk
0:02:31.3]} 11. c3 {[%clk 0:02:44.4]} 11... Be6 {[%clk 0:02:24.6]} 12. d4 {[%clk
0:02:44.6]} 12... Bd6 {[%clk 0:02:20.6]} 13. Bd3 {[%clk 0:02:43.7]} 13... Bd5+
{[%clk 0:02:09.6]} 14. Be4 {[%clk 0:02:40.6]} 14... Bxe4+ {[%clk 0:02:05.1]} 15.
Kxe4 {[%clk 0:02:41.5]} 15... Kd7 {[%clk 0:02:03.1]} 16. Bf4 {[%clk 0:02:39.7]}
16... Rae8+ {[%clk 0:02:02]} 17. Kf3 {[%clk 0:02:40.2]} 17... Bxf4 {[%clk
0:02:02.2]} 18. Kxf4 {[%clk 0:02:41.1]} 18... Re2 {[%clk 0:02:02.6]} 19. Kf3
{[%clk 0:02:36.1]} 19... Rhe8 {[%clk 0:01:57.3]} 20. Rab1 {[%clk 0:02:28.5]}
20... R8e3+ {[%clk 0:01:57]} 21. Kf4 {[%clk 0:02:29.1]} 21... Rd3 {[%clk
0:01:57.2]} 22. g4 {[%clk 0:02:18.3]} 22... Rh3 {[%clk 0:01:42]} 23. g5 {[%clk
0:02:05.8]} 23... Rg2 {[%clk 0:01:31.9]} 24. a4 {[%clk 0:01:48]} 24... Rh4+
{[%clk 0:01:24.5]} 25. Kf3 {[%clk 0:01:47.8]} 25... Rxg5 {[%clk 0:01:24.4]} 26.
Rbg1 {[%clk 0:01:47.5]} 26... Rh3+ {[%clk 0:00:59.3]} 27. Ke4 {[%clk 0:01:41.1]}
27... Rh4+ {[%clk 0:00:37.3]} 28. Kd3 {[%clk 0:01:40.1]} 28... Rxg1 {[%clk
0:00:36.8]} 29. Rxg1 {[%clk 0:01:41]} 29... g6 {[%clk 0:00:37.3]} 30. Rg2 {[%clk
0:01:41.4]} 30... f5 {[%clk 0:00:37.3]} 31. a5 {[%clk 0:01:41.1]} 31... Kd6
{[%clk 0:00:36.5]} 32. b4 {[%clk 0:01:39.6]} 32... Kd5 {[%clk 0:00:34.3]} 33.
c4+ {[%clk 0:01:39.3]} 33... Kd6 {[%clk 0:00:35]} 34. d5 {[%clk 0:01:36.7]}
34... b5 {[%clk 0:00:29.1]} 35. axb6 {[%clk 0:01:30.2]} 35... axb6 {[%clk
0:00:29.4]} 36. Re2 {[%clk 0:01:30.9]} 36... b5 {[%clk 0:00:17]} 37. Re6+ {[%clk
0:01:29.2]} 37... Kd7 {[%clk 0:00:17.5]} 38. c5 {[%clk 0:01:29.6]} 38... Rxb4
{[%clk 0:00:17.5]} 39. c6+ {[%clk 0:01:30]} 39... Kd8 {[%clk 0:00:17.8]} 40. Rf6
{[%clk 0:01:26.9]} 40... Re4 {[%clk 0:00:11.3]} 41. Rf7 {[%clk 0:01:20.1]} 41...
b4 {[%clk 0:00:07.2]} 42. Rd7+ {[%clk 0:01:17.9]} 42... Kc8 {[%clk 0:00:07.4]}
43. Rxh7 {[%clk 0:01:17.5]} 43... Kd8 {[%clk 0:00:04]} 44. Rd7+ {[%clk
0:01:16.9]} 44... Kc8 {[%clk 0:00:04.2]} 45. Rg7 {[%clk 0:01:16.8]} 45... Kd8
{[%clk 0:00:03.7]} 46. Rd7+ {[%clk 0:01:05.2]} 46... Kc8 {[%clk 0:00:03.7]} 47.
Rf7 {[%clk 0:01:05.8]} 47... Kd8 {[%clk 0:00:03.8]} 48. Rd7+ {[%clk 0:00:58.2]}
1/2-1/2

[Event "*** Titled Tuesday Blitz"]
[Site "Chess.com"]
[Date "2020.11.10"]
[Round "7"]
[White "Siemba"]
[Black "MatyChess1"]
[Result "1-0"]
[WhiteElo "2449"]
[BlackElo "2553"]
[TimeControl "180+1"]
[EndTime "11:21:58 PST"]
[Termination "Siemba won on time"]

1. Nh3 {[%clk 0:02:59.6]} 1... d5 {[%clk 0:02:52.1]} 2. g3 {[%clk 0:02:56.9]}
2... e5 {[%clk 0:02:49.9]} 3. Bg2 {[%clk 0:02:54]} 3... c6 {[%clk 0:02:46.1]} 4.
O-O {[%clk 0:02:49.6]} 4... Nf6 {[%clk 0:02:43.1]} 5. d4 {[%clk 0:02:45.1]} 5...
Nbd7 {[%clk 0:02:33.1]} 6. dxe5 {[%clk 0:02:41.3]} 6... Nxe5 {[%clk 0:02:33.5]}
7. Bg5 {[%clk 0:02:42]} 7... h6 {[%clk 0:02:32.6]} 8. Bxf6 {[%clk 0:02:42.2]}
8... Qxf6 {[%clk 0:02:33.5]} 9. c3 {[%clk 0:02:40.3]} 9... Bc5 {[%clk 0:02:31]}
10. Nf4 {[%clk 0:02:40.1]} 10... O-O {[%clk 0:02:04]} 11. Nd3 {[%clk 0:02:29.7]}
11... Nxd3 {[%clk 0:02:00.9]} 12. exd3 {[%clk 0:02:29.5]} 12... Re8 {[%clk
0:01:58.8]} 13. d4 {[%clk 0:02:29.9]} 13... Bd6 {[%clk 0:01:57.6]} 14. Nd2
{[%clk 0:02:30.6]} 14... Bf5 {[%clk 0:01:54.3]} 15. Qb3 {[%clk 0:02:02.1]} 15...
Re7 {[%clk 0:01:51.7]} 16. Rfe1 {[%clk 0:02:01]} 16... Rae8 {[%clk 0:01:52.3]}
17. Rxe7 {[%clk 0:01:56.9]} 17... Rxe7 {[%clk 0:01:53.2]} 18. Nf3 {[%clk
0:01:54]} 18... Be4 {[%clk 0:01:39.8]} 19. Nd2 {[%clk 0:01:39.3]} 19... Bxg2
{[%clk 0:01:21.7]} 20. Kxg2 {[%clk 0:01:40.2]} 20... Re2 {[%clk 0:01:22.2]} 21.
Nf3 {[%clk 0:01:40.8]} 21... Qe7 {[%clk 0:01:04.9]} 22. Ng1 {[%clk 0:00:53.5]}
22... Qe4+ {[%clk 0:00:51.9]} 23. Kf1 {[%clk 0:00:52.2]} 23... Rd2 {[%clk
0:00:46.5]} 24. Re1 {[%clk 0:00:36.3]} 24... Qd3+ {[%clk 0:00:34.4]} 25. Kg2
{[%clk 0:00:34.8]} 25... b5 {[%clk 0:00:25.9]} 26. Nf3 {[%clk 0:00:16.5]} 26...
Rc2 {[%clk 0:00:16.6]} 27. Re8+ {[%clk 0:00:14.5]} 27... Kh7 {[%clk 0:00:15.9]}
28. Ne1 {[%clk 0:00:15]} 28... Rxf2+ {[%clk 0:00:02.5]} 29. Kxf2 {[%clk
0:00:15.9]} 29... Qf5+ {[%clk 0:00:01.6]} 30. Nf3 {[%clk 0:00:16.7]} 1-0

[Event "*** Titled Tuesday Blitz"]
[Site "Chess.com"]
[Date "2020.11.10"]
[Round "7"]
[White "fabianvivasz"]
[Black "Witik"]
[Result "1-0"]
[WhiteElo "2403"]
[BlackElo "2656"]
[TimeControl "180+1"]
[EndTime "11:21:59 PST"]
[Termination "fabianvivasz won by checkmate"]

1. e4 {[%clk 0:03:00.9]} 1... c5 {[%clk 0:02:58.3]} 2. Nf3 {[%clk 0:03:00.3]}
2... Nc6 {[%clk 0:02:58.3]} 3. d4 {[%clk 0:03:00.2]} 3... cxd4 {[%clk
0:02:58.5]} 4. Nxd4 {[%clk 0:03:01.1]} 4... g6 {[%clk 0:02:59]} 5. c4 {[%clk
0:03:00.2]} 5... Nf6 {[%clk 0:02:59]} 6. Nc3 {[%clk 0:02:59.2]} 6... d6 {[%clk
0:02:59.3]} 7. Be2 {[%clk 0:02:56.8]} 7... Nxd4 {[%clk 0:02:58.6]} 8. Qxd4
{[%clk 0:02:56.6]} 8... Bg7 {[%clk 0:02:59]} 9. O-O {[%clk 0:02:55.4]} 9... O-O
{[%clk 0:02:57.6]} 10. Qd2 {[%clk 0:02:35.2]} 10... Be6 {[%clk 0:02:54.9]} 11.
f3 {[%clk 0:02:34.3]} 11... Rc8 {[%clk 0:02:24]} 12. b3 {[%clk 0:02:34.4]} 12...
b5 {[%clk 0:02:20.8]} 13. Nxb5 {[%clk 0:01:40.5]} 13... Nxe4 {[%clk 0:02:16.2]}
14. fxe4 {[%clk 0:01:38.8]} 14... Bxa1 {[%clk 0:02:16.6]} 15. Kh1 {[%clk
0:01:37.1]} 15... Bg7 {[%clk 0:01:41]} 16. Nxa7 {[%clk 0:01:35.5]} 16... Ra8
{[%clk 0:01:39.3]} 17. Nb5 {[%clk 0:01:27.2]} 17... Qd7 {[%clk 0:01:23.4]} 18.
a4 {[%clk 0:01:24.9]} 18... f5 {[%clk 0:01:09.7]} 19. exf5 {[%clk 0:00:53.7]}
19... Bxf5 {[%clk 0:01:07.9]} 20. Bf3 {[%clk 0:00:49.5]} 20... Be4 {[%clk
0:01:01.6]} 21. h3 {[%clk 0:00:33.8]} 21... Bxf3 {[%clk 0:00:58.4]} 22. Rxf3
{[%clk 0:00:33.5]} 22... Rxf3 {[%clk 0:00:58.2]} 23. Qd5+ {[%clk 0:00:33.7]}
23... e6 {[%clk 0:00:42.1]} 24. Qxf3 {[%clk 0:00:29.4]} 24... Rf8 {[%clk
0:00:41.5]} 25. Qe2 {[%clk 0:00:24]} 25... Be5 {[%clk 0:00:36.5]} 26. Bh6 {[%clk
0:00:21.1]} 26... Rf6 {[%clk 0:00:29.8]} 27. g3 {[%clk 0:00:07.5]} 27... Bxg3
{[%clk 0:00:17.4]} 28. Qg2 {[%clk 0:00:07.8]} 28... Be5 {[%clk 0:00:15.3]} 29.
Qa8+ {[%clk 0:00:07.8]} 29... Kf7 {[%clk 0:00:08.1]} 30. Qf8# {[%clk 0:00:07.8]}
1-0

[Event "*** Titled Tuesday Blitz"]
[Site "Chess.com"]
[Date "2020.11.10"]
[Round "7"]
[White "talman67"]
[Black "frederiksvane"]
[Result "0-1"]
[WhiteElo "2540"]
[BlackElo "2706"]
[TimeControl "180+1"]
[EndTime "11:22:00 PST"]
[Termination "frederiksvane won by resignation"]

1. e4 {[%clk 0:03:00.9]} 1... c5 {[%clk 0:02:59.7]} 2. Nf3 {[%clk 0:03:00.7]}
2... g6 {[%clk 0:02:59.7]} 3. c3 {[%clk 0:02:59.2]} 3... d5 {[%clk 0:02:58.9]}
4. d4 {[%clk 0:03:00.1]} 4... dxe4 {[%clk 0:02:58.3]} 5. Ng5 {[%clk 0:02:56.5]}
5... cxd4 {[%clk 0:02:54]} 6. Bc4 {[%clk 0:02:47.7]} 6... Nh6 {[%clk 0:02:44.8]}
7. Qb3 {[%clk 0:02:29.7]} 7... e6 {[%clk 0:02:30.6]} 8. Nxe4 {[%clk 0:02:27.8]}
8... Bg7 {[%clk 0:02:26.3]} 9. Bg5 {[%clk 0:02:23.3]} 9... Qc7 {[%clk
0:01:56.3]} 10. Qa3 {[%clk 0:02:13.4]} 10... Nf5 {[%clk 0:01:38]} 11. Nf6+
{[%clk 0:01:55.4]} 11... Bxf6 {[%clk 0:01:32.3]} 12. Bxf6 {[%clk 0:01:56.3]}
12... Rg8 {[%clk 0:01:09.4]} 13. Bd3 {[%clk 0:01:52.9]} 13... Nc6 {[%clk
0:01:03.6]} 14. O-O {[%clk 0:01:49]} 14... Qf4 {[%clk 0:00:47.4]} 15. Bxf5
{[%clk 0:01:03.4]} 15... gxf5 {[%clk 0:00:40.2]} 16. cxd4 {[%clk 0:00:58.5]}
16... Rg6 {[%clk 0:00:37.2]} 17. Be5 {[%clk 0:00:28.7]} 17... Nxe5 {[%clk
0:00:36]} 18. dxe5 {[%clk 0:00:29.6]} 18... Bd7 {[%clk 0:00:35.3]} 19. Re1
{[%clk 0:00:16.5]} 19... O-O-O {[%clk 0:00:22.6]} 20. Qe3 {[%clk 0:00:10.2]}
20... Qxe3 {[%clk 0:00:16.9]} 21. Rxe3 {[%clk 0:00:11.1]} 21... Bc6 {[%clk
0:00:17.3]} 22. Nc3 {[%clk 0:00:11.6]} 22... Rxg2+ {[%clk 0:00:17.1]} 23. Kf1
{[%clk 0:00:12.2]} 23... Rxh2 {[%clk 0:00:17.5]} 24. Ke2 {[%clk 0:00:11.9]}
24... f4 {[%clk 0:00:17.1]} 25. Rd3 {[%clk 0:00:09.7]} 25... f3+ {[%clk
0:00:13.4]} 26. Ke3 {[%clk 0:00:09.3]} 26... Rxd3+ {[%clk 0:00:14]} 27. Kxd3
{[%clk 0:00:10.1]} 27... Rxf2 {[%clk 0:00:14.9]} 28. Rg1 {[%clk 0:00:09.8]}
28... Rg2 {[%clk 0:00:14.5]} 29. Rf1 {[%clk 0:00:10.5]} 29... h5 {[%clk
0:00:13.5]} 30. Ke3 {[%clk 0:00:10.3]} 30... h4 {[%clk 0:00:13.6]} 31. Ne4
{[%clk 0:00:08.2]} 31... Re2+ {[%clk 0:00:13.3]} 32. Kxf3 {[%clk 0:00:07.8]}
32... Rxe4 {[%clk 0:00:14.2]} 0-1

[Event "*** Titled Tuesday Blitz"]
[Site "Chess.com"]
[Date "2020.11.10"]
[Round "7"]
[White "Vasily85"]
[Black "nochewycandy"]
[Result "1/2-1/2"]
[WhiteElo "2402"]
[BlackElo "2532"]
[TimeControl "180+1"]
[EndTime "11:22:00 PST"]
[Termination "Game drawn by agreement"]

1. d4 {[%clk 0:02:57]} 1... Nf6 {[%clk 0:02:58.3]} 2. Bg5 {[%clk 0:02:56]} 2...
e6 {[%clk 0:02:58.8]} 3. e4 {[%clk 0:02:54.3]} 3... h6 {[%clk 0:02:55]} 4. Bxf6
{[%clk 0:02:54.6]} 4... Qxf6 {[%clk 0:02:55.1]} 5. c3 {[%clk 0:02:54.6]} 5... d6
{[%clk 0:02:52.6]} 6. Bc4 {[%clk 0:02:53.6]} 6... a6 {[%clk 0:02:47.6]} 7. Nd2
{[%clk 0:02:49.2]} 7... b5 {[%clk 0:02:47.1]} 8. Bb3 {[%clk 0:02:49.4]} 8... Bb7
{[%clk 0:02:45.9]} 9. Ngf3 {[%clk 0:02:33.6]} 9... Nd7 {[%clk 0:02:45.7]} 10.
Qe2 {[%clk 0:02:33.5]} 10... g5 {[%clk 0:02:36.7]} 11. Nf1 {[%clk 0:02:11.9]}
11... Bg7 {[%clk 0:02:32.7]} 12. a4 {[%clk 0:01:51.7]} 12... c6 {[%clk 0:02:25]}
13. Ne3 {[%clk 0:01:29.5]} 13... Qg6 {[%clk 0:02:13]} 14. Bc2 {[%clk 0:01:21.5]}
14... Qf6 {[%clk 0:01:56.4]} 15. e5 {[%clk 0:01:13.5]} 15... Qe7 {[%clk
0:01:51.1]} 16. Ng4 {[%clk 0:01:14.1]} 16... h5 {[%clk 0:01:38.8]} 17. exd6
{[%clk 0:01:13.4]} 17... Qxd6 {[%clk 0:01:38.9]} 18. Nge5 {[%clk 0:01:13.2]}
18... g4 {[%clk 0:01:35.3]} 19. Nd2 {[%clk 0:01:00.4]} 19... Nxe5 {[%clk
0:01:32.9]} 20. Ne4 {[%clk 0:01:00.5]} 20... Qc7 {[%clk 0:01:32]} 21. dxe5
{[%clk 0:00:57.7]} 21... Bxe5 {[%clk 0:01:29.8]} 22. Nc5 {[%clk 0:00:53.8]}
22... Bd6 {[%clk 0:01:20.5]} 23. Nxb7 {[%clk 0:00:40.7]} 23... Qxb7 {[%clk
0:01:21.4]} 24. axb5 {[%clk 0:00:39.4]} 24... axb5 {[%clk 0:01:21.5]} 25. O-O
{[%clk 0:00:34]} 25... Ke7 {[%clk 0:01:19]} 26. Be4 {[%clk 0:00:29.3]} 26...
Rxa1 {[%clk 0:01:16]} 27. Rxa1 {[%clk 0:00:30.2]} 27... Ra8 {[%clk 0:01:16]} 28.
Qf1 {[%clk 0:00:20.1]} 28... Rxa1 {[%clk 0:01:05.9]} 29. Qxa1 {[%clk 0:00:21]}
29... Qc7 {[%clk 0:01:06.5]} 30. g3 {[%clk 0:00:18.8]} 30... Bc5 {[%clk
0:01:03.5]} 31. Qa6 {[%clk 0:00:17.9]} 31... Bb6 {[%clk 0:01:02.9]} 32. Qa8
{[%clk 0:00:17.1]} 32... c5 {[%clk 0:00:47.8]} 33. Bc6 {[%clk 0:00:11.6]} 33...
Qd8 {[%clk 0:00:46.7]} 34. Qxd8+ {[%clk 0:00:10.8]} 34... Bxd8 {[%clk
0:00:47.6]} 35. Bxb5 {[%clk 0:00:11.6]} 35... Kf6 {[%clk 0:00:44.4]} 36. Kg2
{[%clk 0:00:11.7]} 36... Be7 {[%clk 0:00:43]} 37. Bc4 {[%clk 0:00:12]} 37... Bd6
{[%clk 0:00:43.3]} 38. h3 {[%clk 0:00:12.4]} 38... Kg5 {[%clk 0:00:41.6]} 39.
hxg4 {[%clk 0:00:12.4]} 39... hxg4 {[%clk 0:00:42.5]} 40. Kf1 {[%clk 0:00:12.9]}
40... Kf6 {[%clk 0:00:41.3]} 41. Ke2 {[%clk 0:00:13.1]} 41... Ke5 {[%clk
0:00:39.7]} 42. Ke3 {[%clk 0:00:13.6]} 42... f5 {[%clk 0:00:39.9]} 43. Bb3
{[%clk 0:00:13.4]} 43... Be7 {[%clk 0:00:39.9]} 44. Bc4 {[%clk 0:00:13.6]} 44...
Bg5+ {[%clk 0:00:40.4]} 45. Ke2 {[%clk 0:00:13.6]} 45... Bc1 {[%clk 0:00:40.4]}
46. b4 {[%clk 0:00:12.6]} 46... cxb4 {[%clk 0:00:41.3]} 47. cxb4 {[%clk
0:00:13.5]} 47... Ba3 {[%clk 0:00:41.1]} 48. b5 {[%clk 0:00:13.5]} 48... Bc5
{[%clk 0:00:41.8]} 49. Bb3 {[%clk 0:00:13.8]} 49... Bb6 {[%clk 0:00:41.6]} 50.
Ba2 {[%clk 0:00:14.4]} 1/2-1/2

[Event "*** Titled Tuesday Blitz"]
[Site "Chess.com"]
[Date "2020.11.10"]
[Round "7"]
[White "Aygehovit1992"]
[Black "Fandorine"]
[Result "0-1"]
[WhiteElo "2672"]
[BlackElo "2836"]
[TimeControl "180+1"]
[EndTime "11:22:01 PST"]
[Termination "Fandorine won on time"]

1. e4 {[%clk 0:03:00.9]} 1... c5 {[%clk 0:03:00.9]} 2. Nf3 {[%clk 0:02:58.4]}
2... d6 {[%clk 0:03:01.3]} 3. d4 {[%clk 0:02:58.9]} 3... cxd4 {[%clk 0:03:02.2]}
4. Nxd4 {[%clk 0:02:59.8]} 4... Nf6 {[%clk 0:03:03]} 5. Nc3 {[%clk 0:03:00.4]}
5... a6 {[%clk 0:03:03.7]} 6. h3 {[%clk 0:03:00.6]} 6... e6 {[%clk 0:03:00.8]}
7. g4 {[%clk 0:03:00.6]} 7... b5 {[%clk 0:02:53.7]} 8. Bg2 {[%clk 0:02:55.7]}
8... Bb7 {[%clk 0:02:53.5]} 9. O-O {[%clk 0:02:52.6]} 9... Nc6 {[%clk
0:02:20.3]} 10. e5 {[%clk 0:01:01.6]} 10... Nxd4 {[%clk 0:02:17]} 11. exf6
{[%clk 0:00:39.7]} 11... Bxg2 {[%clk 0:02:13.2]} 12. fxg7 {[%clk 0:00:33]} 12...
Bxg7 {[%clk 0:02:12.8]} 13. Kxg2 {[%clk 0:00:32.9]} 13... d5 {[%clk 0:02:05.7]}
14. f4 {[%clk 0:00:32.1]} 14... O-O {[%clk 0:01:49.3]} 15. Ne2 {[%clk 0:00:31]}
15... Nxe2 {[%clk 0:01:42.4]} 16. Qxe2 {[%clk 0:00:31.9]} 16... b4 {[%clk
0:01:42.4]} 17. f5 {[%clk 0:00:30.5]} 17... Rc8 {[%clk 0:01:42.8]} 18. fxe6
{[%clk 0:00:26.7]} 18... fxe6 {[%clk 0:01:43.7]} 19. Qxe6+ {[%clk 0:00:25.1]}
19... Kh8 {[%clk 0:01:44.1]} 20. Rxf8+ {[%clk 0:00:25]} 20... Qxf8 {[%clk
0:01:45]} 21. Qf5 {[%clk 0:00:18.7]} 21... Qc5 {[%clk 0:01:22.6]} 22. Qd3 {[%clk
0:00:12.9]} 22... Qxc2+ {[%clk 0:01:04.2]} 23. Qxc2 {[%clk 0:00:13.8]} 23...
Rxc2+ {[%clk 0:01:04.7]} 24. Kf3 {[%clk 0:00:14.6]} 24... a5 {[%clk 0:00:59.1]}
25. Bf4 {[%clk 0:00:08.7]} 25... Rxb2 {[%clk 0:00:48.9]} 26. Re1 {[%clk
0:00:07.8]} 26... Bc3 {[%clk 0:00:49.2]} 27. Re7 {[%clk 0:00:06.6]} 27... Kg8
{[%clk 0:00:43.8]} 28. h4 {[%clk 0:00:06.9]} 28... Rxa2 {[%clk 0:00:41.1]} 29.
g5 {[%clk 0:00:07.4]} 29... b3 {[%clk 0:00:33.2]} 30. h5 {[%clk 0:00:07.9]}
30... b2 {[%clk 0:00:32.2]} 31. Rb7 {[%clk 0:00:08.1]} 31... Ra1 {[%clk
0:00:25.9]} 32. Rb8+ {[%clk 0:00:04.6]} 32... Kf7 {[%clk 0:00:26]} 33. Rb7+
{[%clk 0:00:05.2]} 33... Ke6 {[%clk 0:00:25.7]} 34. Rb6+ {[%clk 0:00:04.8]}
34... Kf5 {[%clk 0:00:24.6]} 0-1